bitfinex/quotes_BTCUSD_20241025
["timestamp","ask_amount","ask_price","bid_price","bid_amount"]
[1729873624328,0.005,67732.0,67730.0,0.000824]
[1729873624647,0.0003756,67731.0,67730.0,0.000824]
[1729873627108,0.005,67736.0,67730.0,0.000824]
[1729873627340,0.005,67740.0,67730.0,0.000824]
[1729873627544,0.22116228,67736.0,67735.0,0.147634]
[1729873627953,0.005,67738.0,67737.0,0.147629]
[1729873629491,0.0003756,67736.0,67731.0,0.147642]
[1729873629684,0.0003756,67736.0,67730.0,0.000824]
[1729873629685,0.0003756,67731.0,67730.0,0.000824]
[1729873631526,0.17241047,67732.0,67730.0,0.148469]
[1729873631527,0.005,67732.0,67730.0,0.148469]
[1729873631734,0.005,67732.0,67730.0,0.000824]
[1729873632032,0.0003756,67731.0,67730.0,0.000824]
[1729873633093,0.0003756,67731.0,67730.0,0.148469]
[1729873633986,0.005,67734.0,67730.0,0.000824]
[1729873634211,0.0053756,67736.0,67735.0,0.147634]
[1729873635848,0.0053756,67736.0,67732.0,0.29528]
[1729873636098,0.0053756,67736.0,67731.0,0.295285]
[1729873636332,0.0053756,67736.0,67730.0,0.000824]
[1729873636570,0.0053756,67736.0,67731.0,0.00461612]
[1729873636811,0.0053756,67736.0,67730.0,0.000824]
[1729873637036,0.0053756,67736.0,67731.0,0.00461608]
[1729873637299,0.0053756,67736.0,67730.0,0.000824]
[1729873637525,0.0053756,67736.0,67731.0,0.00461609]
[1729873637778,0.0053756,67736.0,67730.0,0.000824]
[1729873637999,0.0053756,67736.0,67733.0,0.147636]
[1729873638226,0.0053756,67736.0,67734.0,0.147635]
[1729873639605,0.0053756,67736.0,67733.0,0.147638]
[1729873640128,0.0053756,67736.0,67732.0,0.295281]
[1729873640129,0.0053756,67736.0,67734.0,0.147635]
[1729873640794,0.0053756,67736.0,67733.0,0.147637]
[1729873641975,0.0053756,67736.0,67734.0,0.00461603]
[1729873642202,0.0053756,67736.0,67733.0,0.147637]
[1729873642451,0.0053756,67736.0,67734.0,0.004616]
[1729873642665,0.0053756,67736.0,67735.0,0.004616]
[1729873643381,0.0053756,67736.0,67730.0,0.000824]
[1729873643382,0.1530176,67731.0,67730.0,0.000824]
[1729873643601,0.47093188,67731.0,67730.0,0.000824]
[1729873644019,0.74983188,67731.0,67730.0,0.000824]
[1729873648001,0.204,67731.0,67730.0,0.000824]
[1729873648150,0.005,67733.0,67730.0,0.000824]
[1729873648324,0.0003756,67735.0,67731.0,0.29990135]
[1729873648325,0.005,67734.0,67731.0,0.29990135]
[1729873648677,0.005,67734.0,67733.0,0.147638]
[1729873648883,0.0053756,67735.0,67733.0,0.00461635]
[1729873649081,0.0053756,67735.0,67734.0,0.15225235]
[1729873649319,0.0053756,67735.0,67734.0,0.00461635]
[1729873650687,0.0053756,67735.0,67734.0,0.15225235]
[1729873650920,0.0053756,67735.0,67734.0,0.00461635]
[1729873652576,0.0053756,67735.0,67730.0,0.148468]
[1729873652577,0.005,67731.0,67730.0,0.148468]
[1729873653080,0.0053756,67735.0,67730.0,0.00544024]
[1729873653320,0.0053756,67735.0,67731.0,0.00461624]
[1729873653321,0.005,67733.0,67731.0,0.00461624]
[1729873654551,0.005,67734.0,67733.0,0.00461619]
[1729873654964,0.005,67734.0,67733.0,0.15225419]
[1729873655195,0.005,67734.0,67733.0,0.00461619]
[1729873657263,0.005,67731.0,67730.0,0.000824]
[1729873657460,0.005,67731.0,67730.0,0.00544009]
[1729873657712,0.005,67732.0,67730.0,0.01282583]
[1729873657951,0.0003756,67739.0,67731.0,0.01200183]
[1729873658165,0.22116228,67745.0,67738.0,0.16741047]
[1729873658402,0.22116228,67745.0,67739.0,0.00756823]
[1729873658610,0.22116228,67745.0,67740.0,0.01200183]
[1729873658819,0.22116228,67745.0,67741.0,0.01200183]
[1729873659022,0.22116228,67745.0,67742.0,0.01200183]
[1729873659246,0.22116228,67745.0,67743.0,0.01200183]
[1729873659455,0.0003756,67749.0,67744.0,0.00461609]
[1729873659624,0.0003756,67749.0,67745.0,0.15222709]
[1729873659826,0.005,67747.0,67746.0,0.00461609]
[1729873660035,0.0003756,67749.0,67746.0,0.00461609]
[1729873660036,0.0053756,67749.0,67748.0,0.147605]
[1729873660238,0.005,67747.0,67745.0,0.147611]
[1729873660415,0.005,67747.0,67746.0,0.15222414]
[1729873660620,0.0053756,67751.0,67750.0,0.147601]
[1729873661059,0.0053756,67751.0,67745.0,0.295224]
[1729873661060,0.005,67750.0,67748.0,0.147604]
[1729873661271,0.005,67748.0,67747.0,0.147607]
[1729873661482,0.005,67750.0,67748.0,0.147605]
[1729873661688,0.005,67750.0,67749.0,0.00461492]
[1729873662455,0.005,67750.0,67743.0,0.295232]
[1729873662729,0.005,67750.0,67747.0,0.147606]
[1729873662948,0.005,67750.0,67748.0,0.00461492]
[1729873663169,0.005,67750.0,67747.0,0.147606]
[1729873663391,0.005,67749.0,67748.0,0.00461492]
[1729873663613,0.005,67750.0,67748.0,0.442815]
[1729873663844,0.005,67750.0,67749.0,0.147603]
[1729873664309,0.0003756,67751.0,67746.0,0.295216]
[1729873664310,0.0053756,67751.0,67750.0,0.147601]
[1729873664530,0.005,67750.0,67748.0,0.29982392]
[1729873664753,0.005,67750.0,67749.0,0.147601]
[1729873664962,0.005,67749.0,67748.0,0.15221992]
[1729873665165,0.005,67749.0,67748.0,0.147605]
[1729873665626,0.005,67750.0,67748.0,0.147605]
[1729873665820,0.005,67751.0,67748.0,0.295211]
[1729873665957,0.005,67749.0,67747.0,0.15222092]
[1729873666163,0.005,67749.0,67748.0,0.147605]
[1729873666364,0.005,67751.0,67748.0,0.147605]
[1729873666792,0.005,67749.0,67748.0,0.147605]
[1729873667473,0.005,67749.0,67746.0,0.14761]
[1729873667899,0.005,67748.0,67747.0,0.147606]
[1729873668129,0.005,67748.0,67747.0,0.442822]
[1729873668357,0.005,67749.0,67748.0,0.147605]
[1729873668563,0.005,67748.0,67747.0,0.295214]
[1729873668822,0.005,67748.0,67745.0,0.295224]
[1729873669055,0.00258977,67752.0,67745.0,0.295224]
[1729873669056,0.005,67750.0,67748.0,0.147604]
[1729873669300,0.005,67750.0,67749.0,0.147603]
[1729873670011,0.00258977,67752.0,67749.0,0.147603]
[1729873670012,0.00221417,67752.0,67751.0,0.147599]
[1729873670234,0.00721417,67752.0,67751.0,0.147599]
[1729873674190,0.005,67751.0,67748.0,0.000824]
[1729873674430,0.005,67751.0,67749.0,0.147603]
[1729873674889,0.005,67751.0,67750.0,0.147601]
[1729873675941,0.005,67751.0,67748.0,0.296032]
[1729873676154,0.005,67751.0,67750.0,0.147601]
[1729873676369,0.005,67751.0,67748.0,0.148429]
[1729873676610,0.005,67751.0,67749.0,0.147603]
[1729873676825,0.005,67751.0,67750.0,0.147601]
[1729873677833,0.00221417,67752.0,67750.0,0.147601]
[1729873678104,0.00721417,67752.0,67751.0,0.147599]
[1729873678285,0.00221417,67752.0,67750.0,0.15221484]
[1729873678495,0.00221417,67752.0,67750.0,0.1476]
[1729873678702,0.005,67751.0,67750.0,0.1476]
[1729873679059,0.005,67751.0,67750.0,0.15221485]
[1729873679237,0.00221417,67752.0,67750.0,0.15221585]
[1729873679444,0.005,67751.0,67750.0,0.147601]
[1729873679657,0.00721417,67752.0,67751.0,0.147599]
[1729873680267,0.005,67751.0,67748.0,0.296031]
[1729873680469,0.17278607,67749.0,67748.0,0.000824]
[1729873680677,0.32038907,67749.0,67748.0,0.000824]
[1729873681280,0.47089288,67749.0,67748.0,0.000824]
[1729873681489,0.54629288,67749.0,67748.0,0.000824]
[1729873681679,0.73189288,67749.0,67748.0,0.000824]
[1729873681913,0.74189288,67749.0,67748.0,0.000824]
[1729873682536,0.74389288,67749.0,67748.0,0.000824]
[1729873682752,0.74189288,67749.0,67748.0,0.000824]
[1729873683194,0.87632611,67749.0,67748.0,0.000824]
[1729873684265,0.99932611,67749.0,67748.0,0.000824]
[1729873684936,0.86489288,67749.0,67748.0,0.000824]
[1729873685135,0.84189288,67749.0,67748.0,0.000824]
[1729873686244,0.65910681,67749.0,67748.0,0.000824]
[1729873686493,0.83189288,67749.0,67748.0,0.000824]
[1729873687179,0.82689288,67749.0,67748.0,0.000824]
[1729873687867,0.2613756,67749.0,67748.0,0.000824]
[1729873688065,0.42878607,67749.0,67748.0,0.000824]
[1729873688332,0.57638907,67749.0,67748.0,0.000824]
[1729873689564,0.2613756,67749.0,67748.0,0.000824]
[1729873689769,0.00221417,67752.0,67748.0,0.000824]
[1729873689770,0.005,67750.0,67748.0,0.000824]
[1729873689986,0.0003756,67751.0,67748.0,0.443639]
[1729873689987,0.005,67749.0,67748.0,0.443639]
[1729873690202,0.005,67749.0,67748.0,0.148429]
[1729873690407,0.005,67749.0,67748.0,0.000824]
[1729873693175,0.005,67749.0,67748.0,0.148429]
[1729873693376,0.0003756,67751.0,67750.0,0.147601]
[1729873693377,0.0053756,67751.0,67750.0,0.147601]
[1729873694212,0.005,67750.0,67748.0,0.296034]
[1729873694428,0.005,67749.0,67748.0,0.000824]
[1729873694639,0.0053756,67749.0,67748.0,0.000824]
[1729873696182,0.24444152,67749.0,67748.0,0.000824]
[1729873696413,0.39494533,67749.0,67748.0,0.000824]
[1729873696886,0.30348241,67749.0,67748.0,0.000824]
[1729873698517,0.3159108,67749.0,67748.0,0.000824]
[1729873699995,0.30348241,67749.0,67748.0,0.000824]
[1729873701892,0.15587941,67749.0,67748.0,0.000824]
[1729873702744,0.30348241,67749.0,67748.0,0.000824]
[1729873703168,0.43894207,67749.0,67748.0,0.000824]
[1729873703622,0.30348241,67749.0,67748.0,0.000824]
[1729873705541,0.31717785,67749.0,67748.0,0.000824]
[1729873707815,0.30348241,67749.0,67748.0,0.000824]
[1729873708026,0.15587941,67749.0,67748.0,0.000824]
[1729873708540,0.30348241,67749.0,67748.0,0.000824]
[1729873708743,0.30330477,67749.0,67748.0,0.000824]
[1729873709180,0.83428792,67749.0,67748.0,0.000824]
[1729873709383,0.85728792,67749.0,67748.0,0.000824]
[1729873709598,0.96860677,67749.0,67748.0,0.000824]
[1729873709807,0.90292624,67749.0,67748.0,0.000824]
[1729873710019,0.88922498,67749.0,67748.0,0.000824]
[1729873710434,1.32972897,67749.0,67748.0,0.000824]
[1729873710634,1.22026277,67749.0,67748.0,0.000824]
[1729873710849,0.16783196,67735.0,67734.0,0.000824]
[1729873711060,0.16783196,67735.0,67709.0,0.22198628]
[1729873711061,0.15285296,67725.0,67724.0,0.22116228]
[1729873711277,0.15285296,67725.0,67717.0,0.22116228]
[1729873711278,0.005,67718.0,67717.0,0.22116228]
[1729873711493,0.005,67718.0,67709.0,0.36967528]
[1729873711494,0.17241047,67718.0,67709.0,0.22198628]
[1729873711708,0.00019796,67712.0,67710.0,0.00461762]
[1729873711911,0.00519796,67712.0,67709.0,0.000824]
[1729873712124,0.005,67711.0,67710.0,0.00461783]
[1729873712336,0.005,67711.0,67709.0,0.000824]
[1729873712543,0.005,67710.0,67709.0,0.000824]
[1729873713936,0.00519796,67710.0,67709.0,0.000824]
[1729873714144,0.02300882,67710.0,67709.0,0.000824]
[1729873714345,0.32120063,67710.0,67709.0,0.000824]
[1729873714775,0.4886111,67710.0,67709.0,0.000824]
[1729873714948,0.51930063,67710.0,67709.0,0.000824]
[1729873715509,0.8051111,67710.0,67709.0,0.000824]
[1729873715713,0.63770063,67710.0,67709.0,0.000824]
[1729873716298,0.61488977,67710.0,67709.0,0.000824]
[1729873716504,0.59915937,67710.0,67709.0,0.000824]
[1729873719476,0.60415937,67710.0,67709.0,0.000824]
[1729873719687,0.62715937,67710.0,67709.0,0.000824]
[1729873719900,0.63215937,67710.0,67709.0,0.000824]
[1729873720107,0.77161151,67710.0,67709.0,0.000824]
[1729873720570,0.63215937,67710.0,67709.0,0.000824]
[1729873722775,0.59915937,67710.0,67709.0,0.000824]
[1729873723753,0.50648977,67710.0,67709.0,0.000824]
[1729873723982,0.35380177,67710.0,67709.0,0.000824]
[1729873724178,0.00519796,67710.0,67709.0,0.000824]
[1729873725918,0.00519796,67710.0,67709.0,0.148514]
[1729873726127,0.00721557,67711.0,67710.0,0.147688]
[1729873726329,0.00721557,67711.0,67710.0,0.224888]
[1729873726738,0.00221557,67711.0,67710.0,0.224888]
[1729873728301,0.00221557,67711.0,67709.0,0.000824]
[1729873729167,0.22116228,67710.0,67709.0,0.000824]
[1729873729389,0.00221557,67711.0,67709.0,0.000824]
[1729873729840,0.16962604,67711.0,67709.0,0.000824]
[1729873730931,0.00221557,67711.0,67709.0,0.000824]
[1729873731187,0.00221557,67711.0,67710.0,0.147688]
[1729873731609,0.00221557,67711.0,67709.0,0.000824]
[1729873731811,0.00221557,67711.0,67710.0,0.147688]
[1729873732850,0.005,67712.0,67710.0,0.148512]
[1729873733050,0.005,67712.0,67711.0,0.147686]
[1729873733255,0.005,67712.0,67710.0,0.000824]
[1729873733462,0.005,67712.0,67710.0,0.148511]
[1729873734563,0.005,67712.0,67710.0,0.000824]
[1729873735717,0.00019796,67711.0,67710.0,0.000824]
[1729873736141,0.14788396,67711.0,67710.0,0.000824]
[1729873737296,0.29838777,67711.0,67710.0,0.000824]
[1729873737501,0.60488777,67711.0,67710.0,0.000824]
[1729873738784,0.77229824,67711.0,67710.0,0.000824]
[1729873739145,0.78494246,67711.0,67710.0,0.000824]
[1729873741300,0.00519796,67694.0,67685.0,0.000835]
[1729873741502,0.30842477,67694.0,67685.0,0.000835]
[1729873742156,0.52958705,67694.0,67685.0,0.000835]
[1729873742324,0.82228705,67694.0,67685.0,0.000835]
[1729873742524,0.60112477,67694.0,67685.0,0.000835]
[1729873742727,0.66176926,67694.0,67685.0,0.000835]
[1729873743162,0.67376926,67694.0,67685.0,0.000835]
[1729873743367,1.16234201,67694.0,67685.0,0.000835]
[1729873743574,0.77376926,67694.0,67685.0,0.000835]
[1729873744023,0.81602783,67694.0,67685.0,0.000835]
[1729873744249,0.77376926,67694.0,67685.0,0.000835]
[1729873744459,0.81602783,67694.0,67685.0,0.000835]
[1729873744682,0.02219796,67686.0,67685.0,0.000835]
[1729873744917,0.51085324,67686.0,67685.0,0.000835]
[1729873745137,0.50885324,67686.0,67685.0,0.000835]
[1729873745344,1.08982228,67686.0,67685.0,0.000835]
[1729873745567,1.13533356,67686.0,67685.0,0.000835]
[1729873745775,1.13733356,67686.0,67685.0,0.000835]
[1729873745990,1.13733356,67686.0,67680.0,0.000835]
[1729873745991,0.02219796,67681.0,67680.0,0.000835]
[1729873746199,0.02219796,67681.0,67659.0,5.196e-05]
[1729873746200,0.15298196,67666.0,67659.0,5.196e-05]
[1729873746472,0.32039243,67666.0,67659.0,5.196e-05]
[1729873747339,0.47089624,67666.0,67659.0,5.196e-05]
[1729873747568,0.63830671,67666.0,67665.0,0.0128033]
[1729873747817,0.94060671,67666.0,67665.0,0.0128033]
[1729873748035,1.12638912,67666.0,67665.0,0.0128033]
[1729873749209,0.97588531,67666.0,67665.0,0.0128033]
[1729873749416,0.80847484,67666.0,67665.0,0.0128033]
[1729873749627,0.97588531,67666.0,67665.0,0.0128033]
[1729873749836,0.80847484,67666.0,67665.0,0.0128033]
[1729873750958,0.97588531,67666.0,67665.0,0.0128033]
[1729873751184,1.12638912,67666.0,67665.0,0.0128033]
[1729873753227,0.16760843,67645.0,67640.0,0.22116228]
[1729873753462,0.16760843,67645.0,67640.0,0.51684128]
[1729873753677,0.16760843,67645.0,67640.0,0.295679]
[1729873753897,0.16760843,67645.0,67640.0,0.147839]
[1729873754133,0.16760843,67645.0,67635.0,0.295702]
[1729873754134,0.00019796,67643.0,67638.0,0.147845]
[1729873754372,0.00519796,67643.0,67634.0,0.295708]
[1729873754801,0.00519796,67643.0,67636.0,0.147849]
[1729873755007,0.00519796,67643.0,67634.0,0.295708]
[1729873755213,0.00519796,67643.0,67637.0,0.147847]
[1729873755425,0.00519796,67643.0,67637.0,0.147846]
[1729873755641,0.00519796,67643.0,67638.0,0.147845]
[1729873755851,0.00519796,67643.0,67634.0,0.295708]
[1729873756074,0.00519796,67643.0,67637.0,0.147847]
[1729873756290,0.00519796,67643.0,67631.0,0.295718]
[1729873756510,0.15303196,67643.0,67632.0,0.147858]
[1729873756780,0.15303196,67643.0,67630.0,0.0819]
[1729873756980,0.15303196,67643.0,67630.0,0.525485]
[1729873757208,0.15303196,67643.0,67631.0,0.14786]
[1729873757424,0.47094624,67643.0,67630.0,0.0819]
[1729873757639,0.30353577,67643.0,67630.0,0.0819]
[1729873757852,0.30353577,67643.0,67632.0,0.147857]
[1729873758291,0.30353577,67643.0,67630.0,0.0819]
[1729873758740,0.15570177,67643.0,67630.0,0.0819]
[1729873758968,0.00519796,67643.0,67630.0,0.0819]
[1729873759176,0.00519796,67643.0,67630.0,0.08485713]
[1729873759921,0.16741047,67645.0,67632.0,0.00480204]
[1729873759922,0.005,67645.0,67632.0,0.00480204]
[1729873760151,0.005,67646.0,67632.0,0.00480204]
[1729873760622,0.005,67645.0,67632.0,0.00480204]
[1729873760864,0.00019796,67647.0,67632.0,0.00480204]
[1729873760865,0.005,67646.0,67632.0,0.00480204]
[1729873761102,0.005,67646.0,67633.0,0.16741047]
[1729873761359,0.00519796,67643.0,67630.0,0.0819]
[1729873762271,0.00519796,67643.0,67636.0,0.147849]
[1729873762508,0.1850756,67643.0,67632.0,0.147857]
[1729873762708,0.1850756,67643.0,67633.0,0.147856]
[1729873763219,0.0372416,67643.0,67634.0,0.147854]
[1729873763446,0.00519796,67643.0,67634.0,0.147854]
[1729873763931,0.00519796,67643.0,67632.0,0.295717]
[1729873764177,0.00519796,67643.0,67633.0,0.147855]
[1729873765095,0.00519796,67643.0,67634.0,0.147853]
[1729873765570,0.15303196,67643.0,67630.0,0.0819]
[1729873765852,0.15303196,67643.0,67631.0,0.147859]
[1729873766098,0.15303196,67643.0,67633.0,0.147856]
[1729873766347,0.15303196,67643.0,67627.0,0.295737]
[1729873766602,0.15303196,67643.0,67631.0,0.14786]
[1729873766856,0.15303196,67643.0,67632.0,0.147858]
[1729873767108,0.15303196,67643.0,67627.0,0.295737]
[1729873767332,0.15303196,67643.0,67630.0,0.295725]
[1729873767561,0.15303196,67643.0,67631.0,0.14786]
[1729873768782,0.47094624,67643.0,67625.0,0.000836]
[1729873769022,0.30353577,67643.0,67626.0,0.00462322]
[1729873769284,0.30353577,67643.0,67625.0,0.000836]
[1729873769285,0.30353577,67643.0,67627.0,0.00462322]
[1729873769521,0.30353577,67643.0,67625.0,0.000836]
[1729873769522,0.60700738,67643.0,67625.0,0.000836]
[1729873769778,0.74500738,67643.0,67625.0,0.000836]
[1729873769995,0.57759691,67643.0,67625.0,0.000836]
[1729873770204,0.74500738,67643.0,67625.0,0.000836]
[1729873771696,0.74700738,67643.0,67625.0,0.000836]
[1729873771916,0.5336189,67626.0,67625.0,0.000836]
[1729873772140,0.85499471,67626.0,67625.0,0.000836]
[1729873772386,0.69258424,67626.0,67625.0,0.000836]
[1729873774821,0.70516925,67626.0,67625.0,0.000836]
[1729873775274,0.50975878,67626.0,67625.0,0.000836]
[1729873775485,0.00519796,67626.0,67625.0,0.000836]
[1729873776381,0.30357377,67626.0,67625.0,0.000836]
[1729873776581,0.52473605,67626.0,67625.0,0.000836]
[1729873776793,0.30357377,67626.0,67625.0,0.000836]
[1729873778093,0.30857377,67626.0,67625.0,0.000836]
[1729873778327,0.33157377,67626.0,67625.0,0.000836]
[1729873778539,0.4724215,67626.0,67625.0,0.000836]
[1729873779684,0.33157377,67626.0,67625.0,0.000836]
[1729873779891,0.52907377,67626.0,67625.0,0.000836]
[1729873790878,0.63907377,67626.0,67625.0,0.000836]
[1729873791599,0.62907377,67626.0,67625.0,0.000836]
[1729873791817,0.93143605,67626.0,67625.0,0.000836]
[1729873792035,0.86077758,67626.0,67625.0,0.000836]
[1729873792441,0.87077758,67626.0,67625.0,0.000836]
[1729873793040,0.86577758,67626.0,67625.0,0.000836]
[1729873793216,0.86077758,67626.0,67625.0,0.000836]
[1729873793627,0.86077758,67626.0,67600.0,0.0003]
[1729873793628,0.00019796,67601.0,67600.0,0.0003]
[1729873793999,0.16760843,67601.0,67600.0,0.0003]
[1729873794419,0.17260843,67601.0,67600.0,0.0003]
[1729873794646,0.00519796,67601.0,67600.0,0.0003]
[1729873795257,0.00519796,67601.0,67600.0,0.00492554]
[1729873795441,0.00519796,67601.0,67600.0,0.0003]
[1729873795442,0.005,67601.0,67600.0,0.0003]
[1729873795698,0.005,67601.0,67600.0,0.00492543]
[1729873799070,0.005,67601.0,67600.0,0.00492538]
[1729873800448,0.00519796,67602.0,67600.0,0.00492538]
[1729873800772,0.005,67601.0,67600.0,0.0003]
[1729873800987,0.005,67601.0,67600.0,0.00492542]
[1729873801383,0.005,67601.0,67600.0,0.0003]
[1729873801566,0.005,67601.0,67600.0,0.1528534]
[1729873801979,0.00019796,67605.0,67600.0,0.1528534]
[1729873801980,0.00519796,67605.0,67600.0,0.0049254]
[1729873802181,0.005,67601.0,67600.0,0.148228]
[1729873802383,0.22116228,67602.0,67600.0,0.00492542]
[1729873802605,0.22116228,67602.0,67601.0,0.00462542]
[1729873802806,0.005,67601.0,67600.0,0.001125]
[1729873803013,0.22116228,67602.0,67600.0,0.00575046]
[1729873803211,0.22636024,67602.0,67600.0,0.001125]
[1729873803417,0.005,67601.0,67600.0,0.001125]
[1729873803613,0.22636024,67602.0,67600.0,0.001125]
[1729873803813,0.005,67601.0,67600.0,0.001125]
[1729873804655,0.00519796,67601.0,67600.0,0.001125]
[1729873804858,0.14812396,67601.0,67600.0,0.001125]
[1729873805024,0.15312396,67601.0,67600.0,0.001125]
[1729873805889,0.30362777,67601.0,67600.0,0.001125]
[1729873806135,0.47103824,67601.0,67600.0,0.001125]
[1729873806756,0.31596595,67601.0,67600.0,0.001125]
[1729873808037,0.48337642,67601.0,67600.0,0.001125]
[1729873808245,0.60750038,67601.0,67600.0,0.001125]
[1729873808449,0.59059372,67601.0,67600.0,0.001125]
[1729873808656,0.44008991,67601.0,67600.0,0.001125]
[1729873810276,0.39456595,67601.0,67600.0,0.001125]
[1729873810901,0.25816796,67581.0,67580.0,9e-05]
[1729873811117,0.57608224,67581.0,67580.0,9e-05]
[1729873811739,0.15570177,67581.0,67580.0,9e-05]
[1729873811940,0.295914,67587.0,67580.0,9e-05]
[1729873811941,0.00019796,67582.0,67580.0,9e-05]
[1729873812151,0.00519796,67583.0,67580.0,9e-05]
[1729873812351,0.22116228,67581.0,67580.0,9e-05]
[1729873812562,0.00019796,67582.0,67581.0,0.14797]
[1729873812774,0.00519796,67592.0,67581.0,0.00295934]
[1729873812972,0.22116228,67585.0,67584.0,0.229164]
[1729873813178,0.00019796,67590.0,67589.0,0.147953]
[1729873813794,0.00019796,67590.0,67586.0,0.295916]
[1729873813996,0.00019796,67590.0,67589.0,0.147953]
[1729873814415,0.005,67589.0,67588.0,0.147955]
[1729873814616,0.00019796,67590.0,67589.0,0.147953]
[1729873814911,0.00519796,67590.0,67589.0,0.147953]
[1729873815338,0.00019796,67590.0,67580.0,0.000915]
[1729873815550,0.005,67592.0,67580.0,0.000915]
[1729873815551,0.17260843,67581.0,67580.0,0.000915]
[1729873815760,0.32057843,67581.0,67580.0,0.000915]
[1729873817124,0.47108224,67581.0,67580.0,0.000915]
[1729873817537,0.67008224,67581.0,67580.0,0.000915]
[1729873818773,0.68233799,67581.0,67580.0,0.000915]
[1729873818932,0.8328418,67581.0,67580.0,0.000915]
[1729873819710,0.68233799,67581.0,67580.0,0.000915]
[1729873821373,0.48333799,67581.0,67580.0,0.000915]
[1729873821586,0.30367177,67581.0,67580.0,0.000915]
[1729873821775,0.00519796,67581.0,67580.0,0.000915]
[1729873823740,0.17260843,67581.0,67580.0,0.000915]
[1729873825447,0.32057843,67581.0,67580.0,0.000915]
[1729873825653,0.17260843,67581.0,67580.0,0.000915]
[1729873826321,0.32057843,67581.0,67580.0,0.000915]
[1729873826533,0.17260843,67581.0,67580.0,0.000915]
[1729873826961,0.32057843,67581.0,67580.0,0.000915]
[1729873827182,0.17260843,67581.0,67580.0,0.000915]
[1729873827400,0.00019796,67586.0,67580.0,0.000915]
[1729873827615,0.00019796,67590.0,67581.0,0.0029591]
[1729873827819,0.22116228,67585.0,67584.0,0.147962]
[1729873827996,0.005,67589.0,67580.0,0.00554128]
[1729873828264,0.005,67589.0,67584.0,0.147962]
[1729873828488,0.005,67589.0,67582.0,0.295936]
[1729873828489,0.005,67589.0,67583.0,0.002959]
[1729873828917,0.005,67582.0,67580.0,0.000915]
[1729873829127,0.00019796,67581.0,67580.0,0.000915]
[1729873830022,0.14816796,67581.0,67580.0,0.000915]
[1729873830232,0.00519796,67582.0,67580.0,0.000915]
[1729873830411,0.14816796,67581.0,67580.0,0.000915]
[1729873830621,0.15316796,67581.0,67580.0,0.000915]
[1729873832803,0.15316796,67581.0,67567.0,0.296001]
[1729873833009,0.005,67580.0,67569.0,0.147995]
[1729873833261,0.005,67580.0,67570.0,0.00462721]
[1729873833484,0.00019796,67584.0,67577.0,0.147978]
[1729873833733,0.005,67586.0,67578.0,0.00295925]
[1729873833734,0.22116228,67580.0,67578.0,0.00295925]
[1729873833951,0.51704828,67594.0,67578.0,0.00295925]
[1729873833952,0.00019796,67591.0,67583.0,0.147964]
[1729873834158,0.22116228,67584.0,67583.0,0.147964]
[1729873834373,0.005,67590.0,67582.0,0.295936]
[1729873834584,0.005,67590.0,67578.0,0.00462671]
[1729873834585,0.005,67590.0,67567.0,0.0791]
[1729873834586,0.38857275,67583.0,67567.0,0.0791]
[1729873834814,0.38857275,67583.0,67573.0,0.147987]
[1729873834815,0.005,67582.0,67573.0,0.147987]
[1729873835025,0.22616228,67582.0,67574.0,0.00462661]
[1729873835233,0.00019796,67580.0,67568.0,0.147997]
[1729873835449,0.00019796,67580.0,67567.0,0.0791]
[1729873835450,0.00019796,67580.0,67569.0,0.00462708]
[1729873835679,0.005,67582.0,67571.0,0.147992]
[1729873835887,0.00019796,67580.0,67572.0,0.00462708]
[1729873836179,0.00019796,67580.0,67573.0,0.00462708]
[1729873836410,0.00019796,67580.0,67569.0,0.295993]
[1729873836612,0.00019796,67580.0,67570.0,0.15262009]
[1729873836825,0.00019796,67580.0,67570.0,0.00462709]
[1729873837041,0.00019796,67580.0,67571.0,0.1526191]
[1729873837247,0.00019796,67580.0,67572.0,0.0046271]
[1729873837483,0.00019796,67580.0,67573.0,0.0046271]
[1729873837741,0.00019796,67580.0,67567.0,0.0791]
[1729873837742,0.00019796,67580.0,67568.0,0.295998]
[1729873837992,0.00019796,67580.0,67569.0,0.1526231]
[1729873838236,0.00019796,67580.0,67570.0,0.1526211]
[1729873838464,0.00019796,67580.0,67571.0,0.0046271]
[1729873838697,0.00019796,67580.0,67572.0,0.0046271]
[1729873838917,0.00019796,67580.0,67573.0,0.0046271]
[1729873839179,0.00019796,67580.0,67570.0,0.147994]
[1729873839414,0.00019796,67580.0,67571.0,0.15261702]
[1729873839641,0.00019796,67580.0,67572.0,0.00462702]
[1729873839878,0.00019796,67580.0,67573.0,0.00462702]
[1729873840145,0.16760843,67578.0,67564.0,0.0001]
[1729873840383,0.00019796,67578.0,67565.0,0.296011]
[1729873840651,0.00019796,67578.0,67565.0,0.30063826]
[1729873840906,0.00019796,67578.0,67564.0,0.15560381]
[1729873840907,0.16760843,67569.0,67564.0,0.0001]
[1729873841135,0.16760843,67569.0,67568.0,0.000824]
[1729873841136,0.15319396,67569.0,67568.0,0.000824]
[1729873841619,0.79396806,67569.0,67568.0,0.000824]
[1729873843099,0.66020824,67569.0,67568.0,0.000824]
[1729873847208,0.47110824,67569.0,67568.0,0.000824]
[1729873848022,0.005,67571.0,67568.0,0.000824]
[1729873848230,0.00019796,67569.0,67568.0,0.000824]
[1729873849127,0.00519796,67569.0,67568.0,0.000824]
[1729873849568,0.32060443,67569.0,67568.0,0.000824]
[1729873851115,0.00519796,67569.0,67568.0,0.000824]
[1729873851551,0.00019796,67569.0,67568.0,0.000824]
[1729873851765,0.00519796,67572.0,67571.0,0.147992]
[1729873852204,0.00519796,67572.0,67568.0,0.000824]
[1729873852205,0.005,67569.0,67568.0,0.148821]
[1729873852428,0.00019796,67572.0,67570.0,0.147994]
[1729873852429,0.005,67571.0,67570.0,0.147994]
[1729873852842,0.005,67571.0,67568.0,0.000824]
[1729873853262,0.00019796,67572.0,67568.0,0.000824]
[1729873853263,0.00519796,67572.0,67568.0,0.000824]
[1729873853710,0.15318796,67572.0,67568.0,0.000824]
[1729873853932,0.00519796,67572.0,67568.0,0.000824]
[1729873854160,0.16741047,67570.0,67568.0,0.000824]